bitfinex-derivatives/quotes_SOLF0:USTF0_20250428
["timestamp","ask_amount","ask_price","bid_price","bid_amount"]
[1745837423457,6.5405,152.84,152.8,6.5421]
[1745837425758,6.5409,152.83,152.8,6.5421]
[1745837425956,6.5409,152.83,152.7,13.0929]
[1745837425957,7.6028,152.91,152.66,372.6942]
[1745837426258,6.5394,152.87,152.67,20.82333717]
[1745837426459,43.84378,152.88,152.68,1.18003717]
[1745837426756,43.84378,152.88,152.69,19.6404]
[1745837426958,43.84378,152.88,152.7,1.18003717]
[1745837427352,43.84378,152.88,152.71,19.6381]
[1745837427549,43.84378,152.88,152.76,13.0871]
[1745837427750,43.84378,152.88,152.77,478.7997]
[1745837427948,43.84378,152.88,152.77,482.6453]
[1745837429554,43.84378,152.88,152.86,6.5395]
[1745837429755,43.84378,152.88,152.77,482.6453]
[1745837429950,37.62108,152.88,152.87,6.5392]
[1745837431160,37.62108,152.88,152.86,6.5394]
[1745837433159,37.62108,152.88,152.77,843.6453]
[1745837433759,44.16008,152.88,152.83,6.5405]
[1745837433959,37.62108,152.88,152.83,6.5405]
[1745837434457,37.62108,152.88,152.84,6.5403]
[1745837434857,37.62108,152.88,152.77,843.6453]
[1745837435061,37.62108,152.88,152.85,6.5398]
[1745837437162,44.15988,152.88,152.85,6.5398]
[1745837437762,37.62108,152.88,152.77,843.6453]
[1745837437963,37.62108,152.88,152.77,11.6053]
[1745837440063,6.54,152.85,152.77,11.6053]
[1745837440364,37.62108,152.88,152.77,11.6053]
[1745837440863,6.5403,152.85,152.77,11.6053]
[1745837441262,37.62108,152.88,152.77,11.6053]
[1745837442367,6.5406,152.84,152.8,6.5419]
[1745837442667,37.62108,152.88,152.77,11.6053]
[1745837443465,44.16028,152.88,152.77,11.6053]
[1745837443661,37.62108,152.88,152.77,11.6053]
[1745837443963,37.62108,152.88,152.82,6.5411]
[1745837444267,37.62108,152.88,152.77,11.6053]
[1745837444664,6.5396,152.87,152.77,11.6053]
[1745837444860,37.62108,152.88,152.77,11.6053]
[1745837445060,6.5397,152.86,152.77,11.6053]
[1745837445364,37.62108,152.88,152.77,11.6053]
[1745837446764,44.16008,152.88,152.77,11.6053]
[1745837447368,44.16008,152.88,152.83,6.5405]
[1745837447870,44.16008,152.88,152.77,11.6053]
[1745837448370,44.16008,152.88,152.84,6.5401]
[1745837448772,37.62108,152.88,152.77,11.6053]
[1745837448973,37.62108,152.88,152.84,6.5401]
[1745837449175,37.62108,152.88,152.77,11.6053]
[1745837449670,37.62108,152.88,152.85,6.5398]
[1745837451372,44.15988,152.88,152.84,6.5403]
[1745837452673,37.62108,152.88,152.77,11.6053]
[1745837453169,44.15998,152.88,152.85,6.54]
[1745837453369,44.15998,152.88,152.77,11.6053]
[1745837453674,44.15998,152.88,152.84,6.5402]
[1745837454675,44.15998,152.88,152.85,6.54]
[1745837455175,37.62108,152.88,152.85,6.54]
[1745837455670,44.15988,152.88,152.85,6.54]
[1745837455870,37.62108,152.88,152.84,6.5403]
[1745837456174,37.62108,152.88,152.77,11.6053]
[1745837456468,6.5398,152.86,152.82,6.541]
[1745837456674,6.5398,152.86,152.77,11.6053]
[1745837457075,6.5393,152.87,152.83,6.5406]
[1745837458777,6.5393,152.87,152.84,6.5404]
[1745837459076,6.5393,152.87,152.77,11.6053]
[1745837459377,6.5397,152.86,152.82,6.5409]
[1745837461070,37.62108,152.88,152.77,11.6053]
[1745837461376,11.8692,152.87,152.75,470.82]
[1745837461577,31.4892,152.87,152.73,7.9918]
[1745837462376,6.5414,152.82,152.73,7.9918]
[1745837462978,6.5419,152.81,152.77,6.5431]
[1745837463276,6.5419,152.81,152.73,7.9918]
[1745837463772,6.5415,152.82,152.73,7.9918]
[1745837464581,6.5415,152.82,152.77,6.5432]
[1745837465072,6.5418,152.81,152.77,6.5432]
[1745837465578,6.5414,152.82,152.78,6.5429]
[1745837465875,11.8692,152.87,152.73,7.9918]
[1745837466269,6.5407,152.84,152.79,6.5423]
[1745837467578,6.541,152.83,152.79,6.5423]
[1745837467779,11.8692,152.87,152.73,7.9918]
[1745837468579,31.4892,152.87,152.73,3.8746]
[1745837468775,31.4892,152.87,152.68,3.9704]
[1745837469079,31.4892,152.87,152.72,6.5452]
[1745837469274,31.4892,152.87,152.68,3.9704]
[1745837469482,6.5441,152.76,152.73,6.5449]
[1745837469681,19.62,152.84,152.73,6.5449]
[1745837470579,6.5441,152.76,152.73,6.5449]
[1745837471381,6.5436,152.77,152.74,6.5445]
[1745837472080,13.0805,152.85,152.68,3.9704]
[1745837472379,6.5419,152.81,152.68,3.9704]
[1745837472579,11.8692,152.87,152.69,7.6905]
[1745837473082,6.5416,152.82,152.78,6.5428]
[1745837473680,6.5418,152.81,152.77,6.5433]
[1745837474981,11.8692,152.87,152.75,6.544]
[1745837475179,31.4892,152.87,152.75,6.544]
[1745837475378,31.4892,152.87,152.69,7.6905]
[1745837475578,19.62,152.85,152.69,7.6905]
[1745837476075,6.5444,152.75,152.69,7.6905]
[1745837476282,19.62,152.84,152.72,6.5453]
[1745837476480,6.5447,152.75,152.72,6.5453]
[1745837476676,19.62,152.82,152.64,1.13898571]
[1745837476879,27.603,152.81,152.63,3.7606]
[1745837477080,4.0935,152.8,152.63,3.7606]
[1745837477281,4.0935,152.8,152.64,13.0978]
[1745837477883,4.0935,152.8,152.65,13.0971]
[1745837478684,4.0935,152.8,152.66,13.0963]
[1745837479082,4.0935,152.8,152.75,6.5441]
[1745837479280,6.5428,152.79,152.75,6.5441]
[1745837479487,4.0935,152.8,152.67,13.095]
[1745837479676,4.0935,152.8,152.75,6.544]
[1745837479980,6.5428,152.79,152.68,7.6942]
[1745837480180,6.5428,152.79,152.75,6.5441]
[1745837481484,6.5428,152.79,152.76,6.5438]
[1745837481685,10.6357,152.8,152.69,4.0348]
[1745837482083,10.6357,152.8,152.76,6.5437]
[1745837482283,6.5426,152.79,152.76,6.5437]
[1745837482585,6.5426,152.79,152.75,6.5442]
[1745837482885,4.0935,152.8,152.69,4.0348]
[1745837483585,6.543,152.79,152.75,6.544]
[1745837483889,10.6359,152.8,152.75,6.544]
[1745837484887,10.6359,152.8,152.76,6.5439]
[1745837485082,4.0935,152.8,152.69,4.0348]
[1745837485289,4.0935,152.8,152.68,7.6942]
[1745837485484,4.0935,152.8,152.72,6.5456]
[1745837485788,6.5443,152.75,152.72,6.5456]
[1745837485985,6.5443,152.75,152.71,6.5459]
[1745837486986,23.7135,152.8,152.7,6.5462]
[1745837487289,23.7135,152.8,152.64,3.9068]
[1745837487790,6.5451,152.74,152.7,6.5462]
[1745837488592,6.5445,152.75,152.64,3.9068]
[1745837489195,6.5448,152.74,152.64,3.9068]
[1745837489594,23.7135,152.8,152.64,3.9068]
[1745837489893,6.5449,152.74,152.64,3.9068]
[1745837490291,6.5449,152.74,152.7,6.5464]
[1745837490595,6.5445,152.75,152.64,3.9068]
[1745837490796,23.7135,152.8,152.64,3.9068]
[1745837491496,23.7135,152.8,152.69,6.5468]
[1745837491699,6.5445,152.75,152.64,3.9068]
[1745837491996,23.7135,152.8,152.64,3.9068]
[1745837492296,6.5446,152.75,152.7,6.5463]
[1745837492497,4.0935,152.8,152.64,3.9068]
[1745837492899,6.5446,152.75,152.7,6.5461]
[1745837493196,4.0935,152.8,152.64,3.9068]
[1745837493600,6.544,152.76,152.64,3.9068]
[1745837493800,4.0935,152.8,152.64,3.9068]
[1745837494502,6.5439,152.76,152.72,6.5453]
[1745837494900,4.0935,152.8,152.64,3.9068]
[1745837495193,4.0935,152.8,152.73,6.5451]
[1745837495702,4.0935,152.8,152.74,6.5447]
[1745837496000,4.0935,152.8,152.64,3.9068]
[1745837496202,6.5435,152.77,152.73,6.5449]
[1745837496699,6.5433,152.78,152.73,6.5449]
[1745837496902,6.5433,152.78,152.74,6.5447]
[1745837497896,6.5428,152.79,152.75,6.5443]
[1745837498101,6.5428,152.79,152.64,3.9068]
[1745837498702,6.543,152.78,152.66,13.0961]
[1745837499100,4.0935,152.8,152.66,13.0961]
[1745837499296,6.543,152.79,152.66,13.0961]
[1745837499491,4.0935,152.8,152.66,13.0961]
[1745837499699,4.0935,152.8,152.74,6.5445]
[1745837499996,7.983,152.81,152.66,13.0961]
[1745837500193,7.983,152.81,152.76,6.5436]
[1745837500903,7.983,152.81,152.75,6.5442]
[1745837500904,6.5429,152.79,152.75,6.5442]
[1745837501201,7.983,152.81,152.75,6.5442]
[1745837501402,6.5432,152.78,152.74,6.5443]
[1745837502002,6.5432,152.78,152.75,6.5443]
[1745837502303,6.5428,152.79,152.75,6.5443]
[1745837502504,6.5428,152.79,152.7,3.9941]
[1745837504298,6.5428,152.79,152.76,6.5438]
[1745837504504,6.5428,152.79,152.7,3.9941]
[1745837504706,6.543,152.78,152.7,3.9941]
[1745837504904,7.983,152.81,152.7,3.9941]
[1745837505205,6.5429,152.79,152.7,3.9941]
[1745837505700,6.5424,152.8,152.7,3.9941]
[1745837505903,19.62,152.86,152.7,3.9941]
[1745837506300,6.5416,152.82,152.78,6.5428]
[1745837506705,7.8222,152.87,152.78,6.5428]
[1745837507404,6.5416,152.82,152.78,6.5428]
[1745837507604,7.8222,152.87,152.78,6.5428]
[1745837507806,7.8222,152.87,152.79,6.5425]
[1745837508104,7.8222,152.87,152.7,3.9941]
[1745837508301,7.8222,152.87,152.8,6.5419]
[1745837508599,7.8222,152.87,152.72,13.0911]
[1745837508904,7.8222,152.87,152.79,6.5422]
[1745837509105,6.5411,152.83,152.72,13.0911]
[1745837509501,7.8222,152.87,152.72,13.0911]
[1745837509804,6.5406,152.84,152.72,13.0911]
[1745837510306,6.541,152.83,152.72,13.0911]
[1745837510508,7.8222,152.87,152.72,13.0911]
[1745837511407,6.5416,152.82,152.72,13.0911]
[1745837511707,7.8222,152.87,152.7,3.9941]
[1745837511908,6.5424,152.8,152.76,6.5439]
[1745837512502,6.5428,152.79,152.75,6.5442]
[1745837512703,27.4422,152.87,152.7,3.9941]
[1745837513406,19.62,152.85,152.7,3.9941]
[1745837513600,6.5442,152.76,152.73,6.5451]
[1745837513905,32.7003,152.85,152.73,6.5451]
[1745837514606,13.0811,152.84,152.72,6.5454]
[1745837515114,6.544,152.76,152.73,6.5451]
[1745837516013,6.544,152.76,152.74,6.5446]
[1745837516209,6.5436,152.77,152.74,6.5446]
[1745837517010,6.544,152.76,152.74,6.5446]
[1745837517313,13.0811,152.84,152.7,3.9941]
[1745837517612,6.5442,152.76,152.7,3.9941]
[1745837517912,6.5442,152.76,152.73,6.5449]
[1745837518911,6.5442,152.76,152.7,3.9941]
[1745837519511,6.5442,152.76,152.72,6.5455]
[1745837519812,6.5436,152.77,152.72,6.5455]
[1745837520010,13.0811,152.84,152.7,3.9941]
[1745837520311,6.5439,152.76,152.7,3.9941]
[1745837520507,13.0818,152.83,152.7,10.5404]
[1745837520811,19.62,152.83,152.69,7.986]
[1745837521003,19.62,152.81,152.69,7.986]
[1745837521313,8.0634,152.8,152.69,7.986]
[1745837521501,8.0634,152.8,152.69,14.5326]
[1745837522613,6.5456,152.72,152.69,14.5326]
[1745837523008,8.0634,152.8,152.69,7.986]
[1745837523608,6.5455,152.73,152.69,7.986]
[1745837523907,8.0634,152.8,152.69,7.986]
[1745837524113,6.5454,152.73,152.69,7.986]
[1745837524515,8.0634,152.8,152.69,7.986]
[1745837524713,6.5452,152.73,152.69,7.986]
[1745837525416,6.5452,152.73,152.7,6.5462]
[1745837525617,6.5449,152.74,152.69,7.986]
[1745837525920,6.5449,152.74,152.71,6.5459]
[1745837526418,6.5452,152.73,152.7,6.5461]
[1745837526717,471.16,152.82,152.69,7.986]
[1745837527012,23.3549,152.85,152.69,7.986]
[1745837527215,19.62,152.83,152.69,7.986]
[1745837527418,6.5445,152.75,152.69,7.986]
[1745837527817,6.5445,152.75,152.72,6.5452]
[1745837528315,19.62,152.82,152.69,7.986]
[1745837529013,6.5459,152.72,152.69,14.5325]
[1745837529316,6.5459,152.72,152.7,6.5462]
[1745837529521,11.7354,152.79,152.69,7.986]
[1745837530117,6.5446,152.75,152.69,7.986]
[1745837530321,11.7354,152.79,152.69,7.986]
[1745837531222,11.7354,152.79,152.7,6.5462]
[1745837531419,11.7354,152.79,152.65,475.2538]
[1745837531727,6.5465,152.7,152.68,6.5471]
[1745837531925,13.0861,152.78,152.65,475.2538]
[1745837532523,6.546,152.72,152.69,6.5466]
[1745837533325,6.5454,152.73,152.65,475.2538]
[1745837533524,11.7354,152.79,152.65,475.2538]
[1745837534428,6.5444,152.75,152.72,6.5455]
[1745837534622,11.7354,152.79,152.65,4.0938]
[1745837534927,6.5458,152.72,152.69,6.5466]
[1745837535326,6.5458,152.72,152.65,4.0938]
[1745837535531,6.5458,152.72,152.68,6.5471]
[1745837535724,24.8211,152.79,152.68,6.5471]
[1745837536222,6.5463,152.71,152.69,6.5468]
[1745837536418,24.8211,152.79,152.69,6.5468]
[1745837536630,6.5458,152.72,152.69,6.5468]
[1745837537327,6.5458,152.72,152.7,6.5464]
[1745837537529,6.5458,152.72,152.65,4.0938]
[1745837537928,6.546,152.71,152.68,6.5471]
[1745837538226,24.8211,152.79,152.68,6.5471]
[1745837538430,6.5459,152.72,152.69,6.5468]
[1745837538632,24.8211,152.79,152.65,4.0938]
[1745837539029,6.5454,152.73,152.65,4.0938]
[1745837539533,6.5459,152.72,152.67,6.5475]
[1745837539831,6.5459,152.72,152.65,4.0938]
[1745837540030,6.5462,152.71,152.67,6.5477]
[1745837540332,6.5462,152.71,152.65,4.0938]
[1745837540932,19.62,152.78,152.65,4.0938]
[1745837541432,32.7104,152.73,152.6,3.7762]
[1745837541635,31.5071,152.72,152.6,3.7762]
[1745837541829,31.5071,152.72,152.61,6.55]
[1745837542132,31.5071,152.72,152.56,7.6877]
[1745837542329,19.62,152.7,152.59,6.5511]
[1745837543437,6.5495,152.63,152.59,6.5511]
[1745837544135,6.5495,152.63,152.56,11.4639]
[1745837544136,19.62,152.7,152.57,6.5519]
[1745837544332,19.62,152.7,152.56,11.4639]
[1745837544528,19.62,152.7,152.56,7.6877]
[1745837544728,13.0938,152.69,152.5,3.8948]
[1745837544931,19.62,152.68,152.5,11.7962]
[1745837545127,19.62,152.68,152.5,7.9791]
[1745837545431,6.551,152.6,152.55,6.5526]
[1745837545935,19.62,152.68,152.51,3.8171]
[1745837546333,19.62,152.71,152.51,16.9261]
[1745837546635,11.8871,152.72,152.51,3.8171]
[1745837547037,6.5471,152.69,152.52,1.18255092]
[1745837547339,11.8871,152.72,152.52,1.18255092]
[1745837547637,6.5468,152.7,152.52,1.18255092]
[1745837548141,19.62,152.71,152.52,1.18255092]
[1745837548333,19.62,152.71,152.51,3.8171]
[1745837548642,6.5499,152.62,152.58,6.5512]
[1745837548839,19.62,152.71,152.58,6.5512]
[1745837549241,6.5497,152.63,152.58,6.5512]
[1745837549437,19.62,152.71,152.58,6.5512]
[1745837549743,6.55,152.62,152.58,6.5512]
[1745837549934,19.62,152.71,152.51,3.8171]
[1745837549935,19.62,152.71,152.59,6.5512]
[1745837550241,6.5498,152.63,152.59,6.5512]
[1745837551242,19.62,152.71,152.59,6.5512]
[1745837552443,6.5502,152.62,152.59,6.5512]
[1745837552743,19.62,152.71,152.58,6.5513]
[1745837553148,6.5501,152.62,152.51,3.8171]
[1745837553745,6.5501,152.62,152.58,6.5512]
[1745837554746,6.5501,152.62,152.59,6.5512]
[1745837555046,6.5501,152.62,152.51,3.8171]
[1745837555242,11.8871,152.72,152.51,3.8171]
[1745837555548,13.086,152.79,152.52,1.18176319]
[1745837555843,7.9788,152.77,152.52,362.18176319]
[1745837556043,7.9788,152.77,152.53,20.84296319]
[1745837556238,6.546,152.72,152.59,13.1018]
[1745837556439,7.9788,152.77,152.6,11.9629]
[1745837556846,6.5461,152.71,152.67,6.5474]
[1745837557143,7.9788,152.77,152.6,11.9629]
[1745837557345,6.5459,152.72,152.6,11.9629]
[1745837557848,6.5459,152.72,152.68,6.5471]
[1745837558452,6.5459,152.72,152.6,11.9629]
[1745837558650,7.9788,152.77,152.61,13.1006]
[1745837558851,4.0811,152.77,152.61,13.1006]
[1745837559152,6.5443,152.75,152.62,13.0996]
[1745837559643,6.5443,152.75,152.71,6.5458]
[1745837559954,6.5443,152.75,152.62,13.0996]
[1745837560354,6.544,152.76,152.62,13.0996]
[1745837560748,6.544,152.76,152.71,6.546]
[1745837561349,6.5444,152.75,152.71,6.546]
[1745837561756,31.16829,152.7,152.62,13.0996]
[1745837562355,31.16829,152.7,152.69,6.5469]
[1745837570266,31.16829,152.7,152.6,11.9629]
[1745837570963,31.16829,152.7,152.69,6.5469]
[1745837571668,31.16829,152.7,152.68,6.5471]
[1745837571962,31.16829,152.7,152.6,11.9629]
[1745837572564,31.16829,152.7,152.67,6.5474]
[1745837572964,31.16829,152.7,152.6,11.9629]
[1745837573366,31.16829,152.7,152.67,6.5476]
[1745837575666,31.16829,152.7,152.68,6.5472]
[1745837576465,31.16829,152.7,152.69,6.5469]
[1745837576662,31.16829,152.7,152.6,11.9629]
[1745837577563,31.16829,152.7,152.69,6.5469]
[1745837578664,4.0283,152.79,152.6,11.9629]
[1745837578964,4.0283,152.79,152.61,1.17726488]
[1745837579160,4.0283,152.79,152.61,27.37856488]
[1745837579361,4.1098,152.82,152.79,6.5425]
[1745837579864,4.0395,152.84,152.68,471.3]
[1745837580065,7.5458,152.9,152.69,5.20435802]
[1745837580260,6.5384,152.89,152.84,6.5402]
[1745837580466,11.5853,152.9,152.69,23.6696]
[1745837580667,11.5853,152.9,152.7,1.17534457]
[1745837580860,6.539,152.88,152.83,6.5408]
[1745837581364,31.2253,152.9,152.7,13.0927]
[1745837581665,19.64,152.87,152.7,4.029]
[1745837581868,19.64,152.87,152.72,6.5453]
[1745837582070,19.64,152.87,152.68,471.3]
[1745837582565,1.13930267,152.87,152.63,4.029]
[1745837582770,19.64,152.85,152.63,4.029]
[1745837582963,19.64,152.83,152.63,4.029]
[1745837583170,19.64,152.81,152.63,4.029]
[1745837583370,19.64,152.81,152.68,6.547]
[1745837583573,19.64,152.81,152.63,4.029]
[1745837584172,19.64,152.79,152.63,4.029]
[1745837584377,19.64,152.77,152.63,4.029]
[1745837584869,6.5464,152.71,152.63,4.029]
[1745837585275,6.5464,152.71,152.65,6.5484]
[1745837585573,6.5464,152.71,152.63,4.029]
[1745837585871,6.5464,152.71,152.66,6.5478]
[1745837586275,19.64,152.77,152.63,4.029]
[1745837586773,6.546,152.72,152.63,4.029]
[1745837586966,8.1527,152.71,152.63,4.029]
[1745837587365,14.6989,152.71,152.63,4.029]
[1745837587573,8.1527,152.71,152.65,6.5484]
[1745837588776,6.5471,152.69,152.63,6.5491]
[1745837589075,6.5471,152.69,152.61,7.8827]
[1745837589372,6.5471,152.69,152.64,6.5488]
[1745837590879,8.1527,152.71,152.65,6.5485]
[1745837591379,8.1527,152.71,152.6,471.24]
[1745837591581,3.8619,152.7,152.56,8.1271]
[1745837591879,6.5486,152.66,152.6,6.5507]
[1745837592079,3.8619,152.7,152.56,8.1271]
[1745837593078,6.5486,152.65,152.6,6.5507]
[1745837593579,6.5483,152.66,152.61,6.55]
[1745837593778,27.7927,152.71,152.56,8.1271]
[1745837593779,8.1527,152.71,152.56,8.1271]
[1745837593980,8.1527,152.71,152.57,1.18145719]
[1745837594174,8.1527,152.71,152.58,13.1032]
[1745837594383,3.9349,152.75,152.59,1.18040448]
[1745837594675,3.9349,152.75,152.71,6.5456]
[1745837594876,3.9349,152.75,152.56,369.1271]
[1745837595182,6.5435,152.77,152.72,6.5453]
[1745837596075,6.5435,152.77,152.71,6.5459]
[1745837596380,6.5435,152.77,152.63,12.3622]
[1745837596582,6.544,152.76,152.72,6.5455]
[1745837597682,6.544,152.76,152.71,6.5459]
[1745837597883,6.544,152.76,152.63,12.3622]
[1745837598184,6.544,152.76,152.71,6.5456]
[1745837599486,6.544,152.76,152.72,6.5455]
[1745837600288,7.8225,152.79,152.63,12.3622]
[1745837600590,27.4625,152.79,152.63,12.3622]
[1745837600782,6.5459,152.72,152.63,12.3622]
[1745837601085,27.4625,152.79,152.63,12.3622]
[1745837601387,6.5456,152.72,152.68,6.5471]
[1745837601584,27.4625,152.79,152.63,12.3622]
[1745837602090,7.8225,152.79,152.63,12.3622]
[1745837602484,27.4625,152.79,152.63,12.3622]
[1745837603386,27.4625,152.79,152.67,6.5476]
[1745837603587,27.4625,152.79,152.63,12.3622]
[1745837603989,6.5467,152.7,152.66,6.548]
[1745837604487,6.5462,152.71,152.67,6.5477]
[1745837604985,27.4625,152.79,152.63,12.3622]
[1745837605185,6.5465,152.7,152.66,6.5479]
[1745837605386,27.4625,152.79,152.63,12.3622]
[1745837605790,6.5463,152.71,152.67,6.5476]
[1745837606290,6.5458,152.72,152.68,6.5471]
[1745837606491,7.8225,152.79,152.63,12.3622]
[1745837606792,7.8225,152.79,152.67,6.5475]
[1745837607092,7.8225,152.79,152.63,12.3622]
[1745837607589,7.8225,152.79,152.68,6.5471]
[1745837608989,7.8225,152.79,152.69,6.5468]
[1745837609388,6.5459,152.72,152.69,6.5468]
[1745837609587,19.64,152.78,152.63,12.3622]
[1745837609890,6.5471,152.69,152.63,12.3622]
[1745837610090,19.64,152.76,152.65,6.5484]
[1745837610287,19.64,152.76,152.63,12.3622]
[1745837610887,6.5475,152.68,152.63,12.3622]
[1745837611092,19.64,152.76,152.63,12.3622]
[1745837611392,6.548,152.67,152.63,12.3622]
[1745837611791,6.548,152.67,152.64,6.5488]
[1745837611997,6.548,152.67,152.63,12.3622]
[1745837612392,6.548,152.67,152.64,6.5487]
[1745837612591,19.64,152.76,152.63,12.3622]
[1745837612791,32.7271,152.77,152.63,12.3622]
[1745837613092,32.7271,152.77,152.66,6.5479]
[1745837613289,32.7271,152.77,152.63,12.3622]
[1745837613596,6.5471,152.69,152.65,6.5482]
[1745837613991,32.7271,152.77,152.65,6.5482]
[1745837614199,6.5478,152.67,152.64,6.549]
[1745837614398,19.64,152.76,152.63,12.3622]
[1745837614694,6.5481,152.67,152.63,18.9114]
[1745837616196,32.7304,152.73,152.63,12.3622]
[1745837616391,32.7304,152.73,152.63,8.2163]
[1745837616594,32.7304,152.73,152.63,4.1438]
[1745837616792,19.64,152.75,152.57,7.8053]
[1745837616995,19.64,152.75,152.57,16.8412]
[1745837617397,6.5469,152.69,152.65,6.5483]
[1745837617795,19.64,152.75,152.57,16.8412]
[1745837618200,6.5478,152.67,152.63,6.5492]
[1745837618399,6.5478,152.67,152.57,16.8412]
[1745837618599,19.64,152.76,152.57,16.8412]
[1745837618802,6.5478,152.67,152.63,6.5492]
[1745837619700,6.5478,152.67,152.64,6.549]
[1745837620401,6.5483,152.66,152.57,16.8412]
[1745837620600,19.64,152.74,152.57,16.8412]
[1745837621000,13.0894,152.75,152.57,16.8412]
[1745837621599,6.5469,152.69,152.65,6.5484]
[1745837622000,13.0894,152.75,152.57,16.8412]
[1745837622201,6.5471,152.69,152.57,16.8412]
[1745837622500,13.0894,152.75,152.58,13.1032]
[1745837622696,6.5459,152.72,152.68,6.5472]
[1745837623003,19.64,152.78,152.57,3.7377]
[1745837623197,3.8961,152.77,152.58,1.17888935]
[1745837623394,3.8961,152.77,152.6,13.1015]
[1745837623699,19.64,152.77,152.61,7.8625]
[1745837623899,19.64,152.77,152.66,6.5481]
[1745837624099,19.64,152.77,152.61,7.8625]
[1745837624301,13.0879,152.76,152.61,7.8625]
[1745837624503,6.5474,152.68,152.64,6.5488]
[1745837625203,6.5474,152.68,152.65,6.5485]
[1745837625403,32.7279,152.76,152.61,7.8625]
[1745837625609,32.7279,152.76,152.61,4.0207]
[1745837625905,32.7279,152.76,152.59,13.102]
[1745837626406,32.7279,152.76,152.64,6.549]
[1745837626706,19.64,152.74,152.56,471.28]
[1745837626905,6.5473,152.68,152.64,6.5488]
[1745837627108,19.64,152.74,152.56,471.28]
[1745837627406,19.64,152.74,152.57,13.104]
[1745837627610,19.64,152.74,152.56,471.28]
[1745837628007,6.5471,152.69,152.58,13.1031]
[1745837628506,6.5471,152.69,152.65,6.5484]
[1745837629210,6.5473,152.68,152.65,6.5484]
[1745837630013,6.547,152.69,152.65,6.5484]
[1745837630206,6.547,152.69,152.66,6.5481]
[1745837630510,13.0887,152.75,152.66,6.5481]
[1745837630706,6.5469,152.69,152.66,6.5481]
[1745837631213,13.0887,152.75,152.66,6.5481]
[1745837631407,6.5469,152.69,152.58,13.1031]
[1745837631610,13.0887,152.75,152.58,13.1031]
[1745837632011,6.547,152.69,152.65,6.5483]
[1745837632407,6.547,152.69,152.58,13.1031]
[1745837632609,6.5473,152.68,152.58,13.1031]
[1745837632809,32.7287,152.75,152.58,13.1031]
[1745837633212,6.548,152.67,152.63,6.5491]
[1745837635210,6.5474,152.68,152.64,6.5487]
[1745837636618,6.5478,152.67,152.64,6.5487]
[1745837637618,6.5478,152.67,152.63,6.5492]
[1745837637812,6.5478,152.67,152.58,13.1031]
[1745837638117,6.5475,152.68,152.64,6.549]
[1745837638615,6.5465,152.7,152.66,6.5479]
[1745837638917,31.7354,152.74,152.58,13.1031]
[1745837639318,6.5469,152.69,152.65,6.5484]
[1745837640119,6.5467,152.7,152.66,6.5481]
[1745837640321,12.0954,152.74,152.59,13.1023]
[1745837641223,6.5465,152.7,152.66,6.5479]
[1745837641420,31.7354,152.74,152.56,471.28]
[1745837642221,6.5474,152.68,152.56,471.28]
[1745837643124,6.5474,152.68,152.63,6.5492]
[1745837643323,6.5477,152.67,152.56,471.28]
[1745837643626,6.5477,152.67,152.62,6.5496]
[1745837643925,31.7354,152.74,152.56,471.28]